[Event "DVM U10 2024"]
[Site "Duesseldorf"]
[Date "2024.12.28"]
[Round "4"]
[White "Pardo Lorz, Noah"]
[Black "von der Thüsen, Gottfried"]
[Result "0-1"]
[ECO "C27"]
[WhiteElo "1067"]
[BlackElo "1041"]
[Annotator "NA"]
[PlyCount "60"]
[EventDate "2024.12.23"]
[EventType "team-tourn"]
[EventRounds "7"]
[EventCountry "GER"]
[SourceTitle "playchess.com"]
[Source "ChessBase"]
[SourceQuality "1"]
[TimeControl "3300+5"]

1. e4 {[%emt 0:00:01]} d6 {[%emt 0:00:22]} 2. Bc4 {[%emt 0:00:07]} e5 {[%emt 0:00:20]} 3. Nc3 {[%emt 0:00:21]} Nf6 {[%emt 0:00:21]} 4. d3 {[%emt 0:00:08]} Be6 {[%emt 0:00:24]} 5. Bxe6 {[%emt 0:00:22]} fxe6 {[%emt 0:00:31]} 6. Nf3 {[%emt 0:00:14]} Nc6 {[%emt 0:00:16]} 7. Be3 {[%emt 0:00:17]} d5 {[%emt 0:00:23]} 8. exd5 {[%emt 0:00:13]} exd5 {[%emt 0:00:26]} 9. Bg5 {[%emt 0:00:57]} d4 {[%emt 0:00:53]} 10. Nb5 {[%emt 0:00:11]} a6 {[%emt 0:01:01]} 11. Na3 {[%emt 0:00:09]} h6 {[%emt 0:01:18]} 12. Bxf6 {[%emt 0:00:09]} Qxf6 {[%emt 0:00:19]} 13. c3 {[%emt 0:00:22]} O-O-O {[%emt 0:00:29]} 14. cxd4 {[%emt 0:00:15]} exd4 {[%emt 0:00:31]} 15. Qd2 {[%emt 0:01:39]} Re8+ {[%emt 0:00:27]} 16. Kd1 {[%emt 0:00:53]} Bb4 {[%emt 0:00:30]} 17. Qc2 {[%emt 0:00:38]} Re6 {[%emt 0:00:25]} 18. Re1 {[%emt 0:00:47]} Rhe8 {[%emt 0:00:26]} 19. Re2 {[%emt 0:00:25]} Rxe2 {[%emt 0:00:27]} 20. Qxe2 {[%emt 0:03:52]} Rxe2 {[%emt 0:00:31]} 21. Kxe2 {[%emt 0:00:10]} Ne5 {[%emt 0:01:48]} 22. Nxe5 {[%emt 0:00:48]} Qxe5+ {[%emt 0:00:19]} 23. Kf1 {[%emt 0:00:13]} Qc5 {[%emt 0:00:29]} 24. Nc4 {[%emt 0:00:27]} b5 {[%emt 0:00:32]} 25. b3 {[%emt 0:01:01]} bxc4 {[%emt 0:00:20]} 26. bxc4 {[%emt 0:00:22]} Qf5 {[%emt 0:00:24]} 27. a3 {[%emt 0:00:39]} Bc3 {[%emt 0:00:33]} 28. Ra2 {[%emt 0:01:09]} Qxd3+ {[%emt 0:00:33]} 29. Re2 {[%emt 0:00:41]} Qd1+ {[%emt 0:00:14]} 30. Re1 {[%emt 0:00:18]} Qxe1# {[%emt 0:00:44]} 0-1

[Event "DVM U10 2024"]
[Site "Duesseldorf"]
[Date "2024.12.28"]
[Round "4"]
[White "Schacht, Jakob Otto"]
[Black "Schonlau, Leopold"]
[Result "1-0"]
[ECO "C47"]
[WhiteElo "1064"]
[BlackElo "1533"]
[Annotator "NA"]
[PlyCount "101"]
[EventDate "2024.12.23"]
[EventType "team-tourn"]
[EventRounds "7"]
[EventCountry "GER"]
[SourceTitle "playchess.com"]
[Source "ChessBase"]
[SourceQuality "1"]
[TimeControl "3300+5"]

1. e4 {[%emt 0:00:01]} e5 {[%emt 0:00:04]} 2. Nf3 {[%emt 0:00:09]} Nc6 {[%emt 0:00:03]} 3. d4 {[%emt 0:00:05]} exd4 {[%emt 0:00:07]} 4. Nxd4 {[%emt 0:00:03]} Nf6 {[%emt 0:00:18]} 5. Nc3 {[%emt 0:00:10]} Bb4 {[%emt 0:00:08]} 6. Nxc6 {[%emt 0:00:13]} bxc6 {[%emt 0:00:09]} 7. Bd3 {[%emt 0:00:35]} O-O {[%emt 0:00:42]} 8. O-O {[%emt 0:00:06]} d5 {[%emt 0:00:37]} 9. exd5 {[%emt 0:00:16]} cxd5 {[%emt 0:00:10]} 10. Bg5 {[%emt 0:00:21]} h6 {[%emt 0:00:23]} 11. Bh4 {[%emt 0:00:07]} Bc5 {[%emt 0:00:22]} 12. Qf3 {[%emt 0:00:13]} Re8 {[%emt 0:01:47]} 13. Bxf6 {[%emt 0:00:39]} Qxf6 {[%emt 0:00:10]} 14. Qxd5 {[%emt 0:00:48]} Rb8 {[%emt 0:06:21]} 15. Qxc5 {[%emt 0:00:33]} Bb7 {[%emt 0:00:38]} 16. Rab1 {[%emt 0:00:44]} Rbc8 {[%emt 0:01:29]} 17. Qf5 {[%emt 0:02:09]} Qc6 {[%emt 0:02:07]} 18. f3 {[%emt 0:06:36]} g6 {[%emt 0:01:07]} 19. Qb5 {[%emt 0:02:50]} Rcd8 {[%emt 0:01:32]} 20. Qxc6 {[%emt 0:00:24]} Bxc6 {[%emt 0:00:09]} 21. Rfe1 {[%emt 0:00:19]} Kg7 {[%emt 0:00:31]} 22. Rxe8 {[%emt 0:00:14]} Rxe8 {[%emt 0:00:08]} 23. Kf2 {[%emt 0:00:10]} Kf6 {[%emt 0:00:14]} 24. Bb5 {[%emt 0:00:57]} Bxb5 {[%emt 0:00:07]} 25. Nxb5 {[%emt 0:00:06]} Rd8 {[%emt 0:00:15]} 26. Ke3 {[%emt 0:00:23]} Re8+ {[%emt 0:00:17]} 27. Kf2 {[%emt 0:01:11]} Rd8 {[%emt 0:00:13]} 28. Re1 {[%emt 0:00:34]} Rb8 {[%emt 0:00:15]} 29. a4 {[%emt 0:01:26]} a6 {[%emt 0:00:14]} 30. Nxc7 {[%emt 0:00:24]} Rxb2 {[%emt 0:00:11]} 31. Nd5+ {[%emt 0:00:21]} Kg7 {[%emt 0:00:28]} 32. Ne3 {[%emt 0:00:17]} Ra2 {[%emt 0:00:17]} 33. Rc1 {[%emt 0:00:51]} Rxa4 {[%emt 0:00:22]} 34. c4 {[%emt 0:00:10]} Ra2+ {[%emt 0:00:30]} 35. Kf1 {[%emt 0:00:22]} Kf8 {[%emt 0:00:27]} 36. c5 {[%emt 0:00:53]} Ke8 {[%emt 0:00:10]} 37. c6 {[%emt 0:00:14]} Kd8 {[%emt 0:00:18]} 38. c7+ {[%emt 0:00:09]} Kc8 {[%emt 0:00:03]} 39. Nd5 {[%emt 0:00:13]} Ra5 {[%emt 0:00:18]} 40. Ne7+ {[%emt 0:00:16]} Kd7 {[%emt 0:00:10]} 41. c8=Q+ {[%emt 0:00:11]} Kxe7 {[%emt 0:00:09]} 42. Qc7+ {[%emt 0:00:28]} Kf6 {[%emt 0:00:04]} 43. Qxa5 {[%emt 0:00:13]} h5 {[%emt 0:00:10]} 44. Qxa6+ {[%emt 0:00:11]} Kg5 {[%emt 0:00:06]} 45. Rc5+ {[%emt 0:00:26]} Kh6 {[%emt 0:00:08]} 46. Qc8 {[%emt 0:00:22]} Kg7 {[%emt 0:00:14]} 47. Qd7 {[%emt 0:00:22]} Kf8 {[%emt 0:00:14]} 48. Rc7 {[%emt 0:00:15]} Kg7 {[%emt 0:00:06]} 49. Qxf7+ {[%emt 0:00:14]} Kh6 {[%emt 0:00:07]} 50. Qf4+ {[%emt 0:00:16]} g5 {[%emt 0:00:11]} 51. Qf6# {[%emt 0:00:06]} 1-0

[Event "DVM U10 2024"]
[Site "Duesseldorf"]
[Date "2024.12.28"]
[Round "4"]
[White "Bauta, Luan"]
[Black "Hantke, Florian"]
[Result "1-0"]
[ECO "C54"]
[WhiteElo "1063"]
[BlackElo "1517"]
[Annotator "NA"]
[PlyCount "81"]
[EventDate "2024.12.23"]
[EventType "team-tourn"]
[EventRounds "7"]
[EventCountry "GER"]
[SourceTitle "playchess.com"]
[Source "ChessBase"]
[SourceQuality "1"]
[TimeControl "3300+5"]

1. e4 {[%emt 0:00:02]} e5 {[%emt 0:00:03]} 2. Nf3 {[%emt 0:00:05]} Nc6 {[%emt 0:00:03]} 3. Bc4 {[%emt 0:00:07]} Bc5 {[%emt 0:00:03]} 4. c3 {[%emt 0:00:08]} Nf6 {[%emt 0:00:04]} 5. d4 {[%emt 0:00:06]} exd4 {[%emt 0:00:34]} 6. cxd4 {[%emt 0:00:09]} Bb4+ {[%emt 0:01:22]} 7. Bd2 {[%emt 0:00:08]} Bxd2+ {[%emt 0:00:08]} 8. Nbxd2 {[%emt 0:00:08]} d5 {[%emt 0:00:29]} 9. exd5 {[%emt 0:01:12]} Nxd5 {[%emt 0:00:07]} 10. O-O {[%emt 0:00:13]} O-O {[%emt 0:00:27]} 11. h3 {[%emt 0:00:12]} Bf5 {[%emt 0:01:55]} 12. Re1 {[%emt 0:00:17]} Qd6 {[%emt 0:01:40]} 13. Nf1 {[%emt 0:00:32]} Rfe8 {[%emt 0:04:37]} 14. Ng3 {[%emt 0:00:48]} Bg6 {[%emt 0:01:55]} 15. Qd2 {[%emt 0:00:28]} Nb6 {[%emt 0:04:44]} 16. Bb3 {[%emt 0:01:50]} Nd5 {[%emt 0:01:10]} 17. Re2 {[%emt 0:00:58]} Nf4 {[%emt 0:00:47]} 18. Rxe8+ {[%emt 0:00:40]} Rxe8 {[%emt 0:00:05]} 19. Re1 {[%emt 0:00:05]} Rxe1+ {[%emt 0:01:29]} 20. Qxe1 {[%emt 0:00:12]} h6 {[%emt 0:00:18]} 21. Nh4 {[%emt 0:00:50]} Nxd4 {[%emt 0:03:36]} 22. Nxg6 {[%emt 0:00:22]} Nxg6 {[%emt 0:00:02]} 23. Qe8+ {[%emt 0:00:31]} Qf8 {[%emt 0:00:07]} 24. Bxf7+ {[%emt 0:00:19]} Kh8 {[%emt 0:01:00]} 25. Bxg6 {[%emt 0:00:10]} Qxe8 {[%emt 0:00:13]} 26. Bxe8 {[%emt 0:00:08]} Kg8 {[%emt 0:00:10]} 27. Bd7 {[%emt 0:00:24]} Kf7 {[%emt 0:00:12]} 28. Nf5 {[%emt 0:01:11]} Ne2+ {[%emt 0:01:32]} 29. Kf1 {[%emt 0:00:18]} Nf4 {[%emt 0:00:14]} 30. Nd4 {[%emt 0:00:55]} Nd3 {[%emt 0:01:19]} 31. b3 {[%emt 0:00:58]} Nc5 {[%emt 0:00:51]} 32. Bg4 {[%emt 0:00:19]} Kf6 {[%emt 0:00:39]} 33. Nb5 {[%emt 0:00:20]} Nd3 {[%emt 0:02:47]} 34. Nxc7 {[%emt 0:00:26]} Nc1 {[%emt 0:00:10]} 35. a4 {[%emt 0:00:15]} Nxb3 {[%emt 0:00:09]} 36. Bc8 {[%emt 0:01:03]} Nc5 {[%emt 0:00:57]} 37. Nb5 {[%emt 0:00:43]} a6 {[%emt 0:00:19]} 38. Nd6 {[%emt 0:00:06]} b6 {[%emt 0:00:11]} 39. Bb7 {[%emt 0:00:28]} b5 {[%emt 0:02:07]} 40. Ne4+ {[%emt 0:00:22]} Ke5 {[%emt 0:00:09]} 41. Nxc5 {[%emt 0:00:09]} 1-0

[Event "DVM U10 2024"]
[Site "Duesseldorf"]
[Date "2024.12.28"]
[Round "4"]
[White "Fredrich, Tarje"]
[Black "Sander, Bela"]
[Result "0-1"]
[ECO "C50"]
[WhiteElo "1056"]
[BlackElo "1117"]
[Annotator "NA"]
[PlyCount "80"]
[EventDate "2024.12.23"]
[EventType "team-tourn"]
[EventRounds "7"]
[EventCountry "GER"]
[SourceTitle "playchess.com"]
[Source "ChessBase"]
[SourceQuality "1"]
[TimeControl "3300+5"]

1. e4 {[%emt 0:00:02]} e5 {[%emt 0:00:07]} 2. Nf3 {[%emt 0:00:08]} Nc6 {[%emt 0:00:02]} 3. Nc3 {[%emt 0:00:06]} Bc5 {[%emt 0:00:08]} 4. Bc4 {[%emt 0:00:07]} d6 {[%emt 0:00:08]} 5. h3 {[%emt 0:00:06]} h6 {[%emt 0:00:09]} 6. O-O {[%emt 0:00:14]} Nf6 {[%emt 0:00:10]} 7. d3 {[%emt 0:00:32]} Qe7 {[%emt 0:00:13]} 8. Be3 {[%emt 0:00:18]} Bxe3 {[%emt 0:00:05]} 9. fxe3 {[%emt 0:00:22]} a6 {[%emt 0:00:32]} 10. d4 {[%emt 0:00:13]} exd4 {[%emt 0:01:05]} 11. exd4 {[%emt 0:00:34]} Bd7 {[%emt 0:00:44]} 12. Re1 {[%emt 0:01:21]} O-O-O {[%emt 0:00:15]} 13. e5 {[%emt 0:00:31]} Ng8 {[%emt 0:00:53]} 14. Nd5 {[%emt 0:01:29]} Qf8 {[%emt 0:00:00]} 15. c3 {[%emt 0:01:09]} dxe5 {[%emt 0:00:43]} 16. Nxe5 {[%emt 0:00:20]} Nxe5 {[%emt 0:00:26]} 17. dxe5 {[%emt 0:00:48]} Qc5+ {[%emt 0:00:08]} 18. Kh1 {[%emt 0:00:27]} Qxc4 {[%emt 0:00:22]} 19. b3 {[%emt 0:00:51]} Qc5 {[%emt 0:00:31]} 20. b4 {[%emt 0:00:23]} Qc4 {[%emt 0:00:26]} 21. Qf3 {[%emt 0:03:11]} Be6 {[%emt 0:00:25]} 22. Nf4 {[%emt 0:01:47]} Ne7 {[%emt 0:00:23]} 23. Nd3 {[%emt 0:00:31]} Rxd3 {[%emt 0:00:29]} 24. Qe2 {[%emt 0:00:35]} Rhd8 {[%emt 0:01:07]} 25. a4 {[%emt 0:03:23]} Nf5 {[%emt 0:01:11]} 26. b5 {[%emt 0:00:35]} Ng3+ {[%emt 0:00:28]} 27. Kh2 {[%emt 0:00:18]} Nxe2 {[%emt 0:00:02]} 28. Rxe2 {[%emt 0:00:27]} axb5 {[%emt 0:00:22]} 29. axb5 {[%emt 0:00:42]} Qxb5 {[%emt 0:00:10]} 30. Re4 {[%emt 0:00:29]} Rd2 {[%emt 0:01:05]} 31. c4 {[%emt 0:02:11]} Qc6 {[%emt 0:00:00]} 32. Rae1 {[%emt 0:00:56]} Bxc4 {[%emt 0:00:00]} 33. Rg4 {[%emt 0:00:31]} Bd5 {[%emt 0:01:08]} 34. Rg1 {[%emt 0:00:19]} b5 {[%emt 0:01:25]} 35. Rxg7 {[%emt 0:00:13]} b4 {[%emt 0:00:29]} 36. e6 {[%emt 0:00:47]} Qxe6 {[%emt 0:00:50]} 37. Rg3 {[%emt 0:01:07]} Qe5 {[%emt 0:00:19]} 38. h4 {[%emt 0:00:15]} Rd3 {[%emt 0:00:11]} 39. h5 {[%emt 0:00:14]} Qxg3+ {[%emt 0:00:17]} 40. Kh1 {[%emt 0:00:09]} Qh3# {[%emt 0:00:08]} 0-1

[Event "DVM U10 2024"]
[Site "Duesseldorf"]
[Date "2024.12.28"]
[Round "4"]
[White "Hornych, Fridtjof"]
[Black "Shandi, Hasan"]
[Result "0-1"]
[ECO "C62"]
[WhiteElo "1053"]
[BlackElo "1153"]
[Annotator "NA"]
[PlyCount "82"]
[EventDate "2024.12.23"]
[EventType "team-tourn"]
[EventRounds "7"]
[EventCountry "GER"]
[SourceTitle "playchess.com"]
[Source "ChessBase"]
[SourceQuality "1"]
[TimeControl "3300+5"]

1. e4 {[%emt 0:00:01]} e5 {[%emt 0:00:06]} 2. Nf3 {[%emt 0:00:05]} Nc6 {[%emt 0:00:05]} 3. Bb5 {[%emt 0:00:08]} Nf6 {[%emt 0:00:29]} 4. O-O {[%emt 0:00:09]} d6 {[%emt 0:00:08]} 5. Nc3 {[%emt 0:00:15]} Be7 {[%emt 0:00:22]} 6. d4 {[%emt 0:00:27]} exd4 {[%emt 0:01:40]} 7. Nxd4 {[%emt 0:00:22]} Bd7 {[%emt 0:00:12]} 8. Nxc6 {[%emt 0:00:43]} Bxc6 {[%emt 0:00:15]} 9. Bxc6+ {[%emt 0:00:11]} bxc6 {[%emt 0:00:08]} 10. Bf4 {[%emt 0:00:30]} O-O {[%emt 0:00:31]} 11. Qf3 {[%emt 0:00:46]} d5 {[%emt 0:01:59]} 12. e5 {[%emt 0:01:13]} Nd7 {[%emt 0:01:00]} 13. Qg3 {[%emt 0:00:18]} Kh8 {[%emt 0:02:09]} 14. Rfe1 {[%emt 0:00:39]} Bh4 {[%emt 0:02:46]} 15. Qg4 {[%emt 0:00:56]} Nb6 {[%emt 0:01:53]} 16. Red1 {[%emt 0:01:59]} f5 {[%emt 0:00:20]} 17. Qe2 {[%emt 0:03:13]} Bg5 {[%emt 0:03:03]} 18. Qf3 {[%emt 0:00:41]} Bxf4 {[%emt 0:00:40]} 19. Qxf4 {[%emt 0:00:10]} Qe7 {[%emt 0:01:10]} 20. Re1 {[%emt 0:00:30]} Rae8 {[%emt 0:00:52]} 21. Rad1 {[%emt 0:01:53]} Nd7 {[%emt 0:00:44]} 22. e6 {[%emt 0:01:29]} Nc5 {[%emt 0:00:34]} 23. Qe3 {[%emt 0:02:34]} Qxe6 {[%emt 0:01:00]} 24. Qxe6 {[%emt 0:00:52]} Rxe6 {[%emt 0:00:20]} 25. Rxe6 {[%emt 0:00:31]} Nxe6 {[%emt 0:00:14]} 26. Re1 {[%emt 0:00:20]} Re8 {[%emt 0:00:50]} 27. Na4 {[%emt 0:00:42]} Kg8 {[%emt 0:00:12]} 28. Nc5 {[%emt 0:01:32]} Kf7 {[%emt 0:00:25]} 29. Nd3 {[%emt 0:07:30]} Nd8 {[%emt 0:07:43]} 30. Rxe8 {[%emt 0:01:02]} Kxe8 {[%emt 0:00:13]} 31. f4 {[%emt 0:00:00]} Ne6 {[%emt 0:00:27]} 32. c3 {[%emt 0:00:00]} Kd7 {[%emt 0:01:59]} 33. g3 {[%emt 0:00:00]} c5 {[%emt 0:01:05]} 34. Kf2 {[%emt 0:00:00]} c4 {[%emt 0:01:45]} 35. Nb4 {[%emt 0:00:00]} Kd6 {[%emt 0:00:29]} 36. Ke3 {[%emt 0:00:13]} Nc5 {[%emt 0:02:13]} 37. Kd4 {[%emt 0:02:14]} c6 {[%emt 0:00:49]} 38. Nc2 {[%emt 0:01:23]} Nd3 {[%emt 0:00:00]} 39. b3 {[%emt 0:00:58]} cxb3 {[%emt 0:00:00]} 40. axb3 {[%emt 0:01:33]} Nf2 {[%emt 0:01:01]} 41. Ne3 {[%emt 0:00:57]} c5# {[%emt 0:00:15]} 0-1

[Event "DVM U10 2024"]
[Site "Duesseldorf"]
[Date "2024.12.28"]
[Round "4"]
[White "Fischer, Emil Fiete"]
[Black "Tschötsch, Hugo"]
[Result "0-1"]
[ECO "B87"]
[WhiteElo "1050"]
[BlackElo "1110"]
[Annotator "NA"]
[PlyCount "110"]
[EventDate "2024.12.23"]
[EventType "team-tourn"]
[EventRounds "7"]
[EventCountry "GER"]
[SourceTitle "playchess.com"]
[Source "ChessBase"]
[SourceQuality "1"]
[TimeControl "3300+5"]

1. e4 {[%emt 0:00:01]} c5 {[%emt 0:00:00]} 2. Nf3 {[%emt 0:00:08]} e6 {[%emt 0:00:06]} 3. d4 {[%emt 0:00:09]} cxd4 {[%emt 0:00:07]} 4. Nxd4 {[%emt 0:00:10]} Nf6 {[%emt 0:00:06]} 5. Nc3 {[%emt 0:00:10]} d6 {[%emt 0:00:07]} 6. Bc4 {[%emt 0:00:40]} a6 {[%emt 0:00:15]} 7. O-O {[%emt 0:00:22]} b5 {[%emt 0:00:19]} 8. Bb3 {[%emt 0:00:18]} Be7 {[%emt 0:00:17]} 9. a4 {[%emt 0:00:09]} b4 {[%emt 0:00:16]} 10. Nce2 {[%emt 0:00:10]} Nxe4 {[%emt 0:01:01]} 11. Qd3 {[%emt 0:00:18]} d5 {[%emt 0:02:19]} 12. f3 {[%emt 0:00:57]} Nc5 {[%emt 0:02:36]} 13. Qd1 {[%emt 0:01:15]} O-O {[%emt 0:02:08]} 14. Ng3 {[%emt 0:00:34]} a5 {[%emt 0:03:24]} 15. Kh1 {[%emt 0:02:37]} Qc7 {[%emt 0:04:44]} 16. Nb5 {[%emt 0:01:27]} Qc6 {[%emt 0:03:59]} 17. Be3 {[%emt 0:01:09]} Nxb3 {[%emt 0:02:50]} 18. cxb3 {[%emt 0:00:15]} Ba6 {[%emt 0:03:46]} 19. Rc1 {[%emt 0:00:14]} Qd7 {[%emt 0:00:29]} 20. Nc7 {[%emt 0:00:09]} Bxf1 {[%emt 0:01:59]} 21. Qxf1 {[%emt 0:00:11]} Na6 {[%emt 0:06:08]} 22. Nxa6 {[%emt 0:00:23]} Rac8 {[%emt 0:01:29]} 23. Nc5 {[%emt 0:00:20]} Bxc5 {[%emt 0:00:19]} 24. Rxc5 {[%emt 0:00:08]} Rxc5 {[%emt 0:00:24]} 25. Bxc5 {[%emt 0:00:09]} Rc8 {[%emt 0:00:48]} 26. Be3 {[%emt 0:00:09]} d4 {[%emt 0:01:24]} 27. Bg1 {[%emt 0:00:47]} e5 {[%emt 0:01:30]} 28. Ne4 {[%emt 0:00:08]} Rc2 {[%emt 0:01:49]} 29. Qb1 {[%emt 0:00:11]} Qc7 {[%emt 0:00:11]} 30. h3 {[%emt 0:02:40]} d3 {[%emt 0:03:49]} 31. Be3 {[%emt 0:00:52]} f5 {[%emt 0:01:19]} 32. Nc5 {[%emt 0:00:13]} e4 {[%emt 0:03:44]} 33. fxe4 {[%emt 0:00:26]} Qg3 {[%emt 0:00:10]} 34. Qg1 {[%emt 0:00:23]} Re2 {[%emt 0:00:18]} 35. Nxd3 {[%emt 0:01:01]} Qxe3 {[%emt 0:00:36]} 36. Qxe3 {[%emt 0:00:28]} Rxe3 {[%emt 0:00:01]} 37. Nf2 {[%emt 0:00:41]} fxe4 {[%emt 0:00:39]} 38. Ng4 {[%emt 0:00:08]} Rxb3 {[%emt 0:00:02]} 39. Kh2 {[%emt 0:00:14]} Rxb2 {[%emt 0:00:03]} 40. Kg3 {[%emt 0:00:15]} Ra2 {[%emt 0:00:02]} 41. Kf4 {[%emt 0:00:24]} b3 {[%emt 0:00:02]} 42. Ke5 {[%emt 0:00:14]} b2 {[%emt 0:00:02]} 43. Ke6 {[%emt 0:00:25]} b1=Q {[%emt 0:00:11]} 44. Ne5 {[%emt 0:00:17]} Qb6+ {[%emt 0:00:04]} 45. Ke7 {[%emt 0:00:20]} Qc7+ {[%emt 0:00:04]} 46. Ke6 {[%emt 0:00:20]} e3 {[%emt 0:00:04]} 47. Nf3 {[%emt 0:00:15]} Qf7+ {[%emt 0:00:02]} 48. Ke5 {[%emt 0:00:14]} e2 {[%emt 0:00:03]} 49. Ke4 {[%emt 0:00:26]} Qxf3+ {[%emt 0:00:03]} 50. Kxf3 {[%emt 0:00:11]} e1=Q {[%emt 0:00:04]} 51. Kf4 {[%emt 0:00:14]} Qb4+ {[%emt 0:00:03]} 52. Kf3 {[%emt 0:00:14]} Ra3+ {[%emt 0:00:01]} 53. Kf2 {[%emt 0:00:27]} Qb2+ {[%emt 0:00:02]} 54. Kg1 {[%emt 0:00:12]} Ra2 {[%emt 0:00:02]} 55. Kf1 {[%emt 0:00:14]} Qf2# {[%emt 0:00:02]} 0-1

[Event "DVM U10 2024"]
[Site "Duesseldorf"]
[Date "2024.12.28"]
[Round "4"]
[White "Hübner, Jakob"]
[Black "Kinateder, Vitus"]
[Result "1-0"]
[ECO "D02"]
[WhiteElo "1045"]
[BlackElo "1605"]
[Annotator "NA"]
[PlyCount "131"]
[EventDate "2024.12.23"]
[EventType "team-tourn"]
[EventRounds "7"]
[EventCountry "GER"]
[SourceTitle "playchess.com"]
[Source "ChessBase"]
[SourceQuality "1"]
[TimeControl "3300+5"]

1. d4 {[%emt 0:00:03]} d5 {[%emt 0:00:06]} 2. Nf3 {[%emt 0:00:07]} Nf6 {[%emt 0:00:11]} 3. c3 {[%emt 0:00:05]} Bf5 {[%emt 0:00:12]} 4. Bf4 {[%emt 0:00:12]} e6 {[%emt 0:00:37]} 5. e3 {[%emt 0:00:15]} a6 {[%emt 0:00:11]} 6. Bd3 {[%emt 0:00:19]} Bxd3 {[%emt 0:00:12]} 7. Qxd3 {[%emt 0:00:08]} Bd6 {[%emt 0:00:42]} 8. Bg3 {[%emt 0:00:09]} c5 {[%emt 0:01:37]} 9. Nbd2 {[%emt 0:00:16]} Bxg3 {[%emt 0:00:39]} 10. hxg3 {[%emt 0:00:11]} c4 {[%emt 0:01:35]} 11. Qc2 {[%emt 0:00:30]} h6 {[%emt 0:03:00]} 12. O-O-O {[%emt 0:00:18]} b5 {[%emt 0:00:24]} 13. Ne5 {[%emt 0:00:32]} Nbd7 {[%emt 0:00:52]} 14. f4 {[%emt 0:01:15]} Nxe5 {[%emt 0:01:00]} 15. fxe5 {[%emt 0:00:25]} Ng4 {[%emt 0:00:41]} 16. Rde1 {[%emt 0:00:45]} Nf2 {[%emt 0:00:15]} 17. Ref1 {[%emt 0:01:28]} Nxh1 {[%emt 0:00:41]} 18. Rxh1 {[%emt 0:00:26]} Qg5 {[%emt 0:00:46]} 19. Nf1 {[%emt 0:00:34]} a5 {[%emt 0:00:32]} 20. a4 {[%emt 0:00:34]} b4 {[%emt 0:00:16]} 21. b3 {[%emt 0:01:26]} Qg6 {[%emt 0:00:56]} 22. Qb2 {[%emt 0:01:03]} Qd3 {[%emt 0:00:18]} 23. bxc4 {[%emt 0:00:53]} Qxc3+ {[%emt 0:00:08]} 24. Qxc3 {[%emt 0:00:55]} bxc3 {[%emt 0:00:07]} 25. cxd5 {[%emt 0:00:34]} exd5 {[%emt 0:00:37]} 26. Kc2 {[%emt 0:00:20]} Rc8 {[%emt 0:00:10]} 27. g4 {[%emt 0:01:06]} Rc4 {[%emt 0:00:13]} 28. g5 {[%emt 0:00:37]} h5 {[%emt 0:00:14]} 29. Ng3 {[%emt 0:00:33]} h4 {[%emt 0:00:14]} 30. Nf5 {[%emt 0:00:03]} Kf8 {[%emt 0:00:41]} 31. Rf1 {[%emt 0:00:53]} g6 {[%emt 0:00:24]} 32. Nd6 {[%emt 0:00:31]} Rc7 {[%emt 0:00:23]} 33. Nb5 {[%emt 0:00:26]} Rd7 {[%emt 0:00:52]} 34. Nxc3 {[%emt 0:00:10]} h3 {[%emt 0:00:10]} 35. gxh3 {[%emt 0:00:21]} Rxh3 {[%emt 0:00:06]} 36. Kd3 {[%emt 0:00:04]} Rg3 {[%emt 0:00:23]} 37. Rb1 {[%emt 0:02:28]} Rxg5 {[%emt 0:00:18]} 38. Rb5 {[%emt 0:00:28]} Ra7 {[%emt 0:00:27]} 39. Nxd5 {[%emt 0:00:26]} Rg1 {[%emt 0:01:36]} 40. Nc3 {[%emt 0:00:36]} Rc1 {[%emt 0:00:13]} 41. Nd5 {[%emt 0:01:33]} Ra8 {[%emt 0:00:39]} 42. Ke4 {[%emt 0:00:23]} Rc4 {[%emt 0:00:21]} 43. Nb6 {[%emt 0:00:27]} Rcc8 {[%emt 0:00:58]} 44. Nxc8 {[%emt 0:00:49]} Rxc8 {[%emt 0:00:17]} 45. Rxa5 {[%emt 0:00:16]} Ke7 {[%emt 0:00:22]} 46. Rc5 {[%emt 0:00:52]} Ra8 {[%emt 0:00:10]} 47. a5 {[%emt 0:00:37]} g5 {[%emt 0:02:05]} 48. Kf5 {[%emt 0:00:13]} Rg8 {[%emt 0:00:12]} 49. Kg4 {[%emt 0:01:01]} Ke6 {[%emt 0:00:17]} 50. a6 {[%emt 0:00:41]} f5+ {[%emt 0:00:09]} 51. exf6 {[%emt 0:00:39]} Kxf6 {[%emt 0:00:06]} 52. a7 {[%emt 0:00:49]} Ra8 {[%emt 0:00:16]} 53. Rc7 {[%emt 0:00:33]} Re8 {[%emt 0:00:19]} 54. Rb7 {[%emt 0:00:21]} Ra8 {[%emt 0:00:09]} 55. e4 {[%emt 0:00:47]} Kg6 {[%emt 0:00:24]} 56. d5 {[%emt 0:00:00]} Kf6 {[%emt 0:00:06]} 57. d6 {[%emt 0:01:07]} Ke6 {[%emt 0:00:07]} 58. d7 {[%emt 0:00:26]} Ke7 {[%emt 0:00:06]} 59. Rb8 {[%emt 0:00:23]} Rxa7 {[%emt 0:00:12]} 60. d8=Q+ {[%emt 0:00:22]} Ke6 {[%emt 0:00:13]} 61. Qb6+ {[%emt 0:00:59]} Ke5 {[%emt 0:00:01]} 62. Qxa7 {[%emt 0:00:57]} Kxe4 {[%emt 0:00:07]} 63. Qc5 {[%emt 0:00:25]} Kd3 {[%emt 0:00:15]} 64. Rb4 {[%emt 0:00:21]} Kd2 {[%emt 0:00:13]} 65. Rb3 {[%emt 0:00:22]} Ke2 {[%emt 0:00:09]} 66. Qc2+ {[%emt 0:00:17]} 1-0